fUST/lending_fUST_20241123
["ID","MTS","AMOUNT","RATE_DAILY","PERIOD"]
[343130488,1732375859021,-501.84,0.00025201,2]
[343130489,1732375859031,-406.55012555,0.00025201,2]
[343130490,1732375859040,-751.78,0.00025201,2]
[343130491,1732375859054,-844.08,0.00025201,2]
[343130492,1732375859063,-1515.31,0.00025202,2]
[343130493,1732375859072,-1672.09,0.00025202,2]
[343130494,1732375859153,-1456.09,0.00025202,2]
[343130495,1732375859163,-833.39,0.00025202,2]
[343130496,1732375859174,-571.91,0.00025202,2]
[343130497,1732375859184,-503.77,0.00025202,2]
[343130498,1732375859194,-1199.57,0.00025202,2]
[343130499,1732375859204,-1722.52,0.00025202,2]
[343130500,1732375859214,-758.38,0.00025202,2]
[343130501,1732375859223,-832.79,0.00025202,2]
[343130502,1732375859234,-886.26,0.00025202,2]
[343130503,1732375859244,-500.0,0.00025202,2]
[343130504,1732375859254,-500.0,0.00025202,2]
[343130505,1732375859264,-505.49,0.00025202,2]
[343130506,1732375859274,-1514.66,0.00025202,2]
[343130507,1732375859283,-3232.96,0.00025202,2]
[343130508,1732375859297,-1015.33,0.00025202,2]
[343130509,1732375859306,-1821.31,0.00025202,2]
[343130510,1732375859316,-521.6,0.00025202,2]
[343130511,1732375859325,-659.92,0.00025204,2]
[343130512,1732375859335,-560.03,0.00025204,2]
[343130513,1732375859344,-500.0,0.00025204,2]
[343130514,1732375859354,-533.53513847,0.00025204,2]
[343130515,1732375859364,-1253.7,0.00025204,2]
[343130516,1732375859373,-726.57,0.00025204,2]
[343130517,1732375859383,-2500.0,0.00025356,2]
[343130518,1732375859393,-160.80507585,0.00025412,2]
[343130519,1732375859403,-900.0,0.00025469,3]
[343130520,1732375859412,-4657.37,0.00025472,2]
[343130521,1732375859422,-1153.0,0.00025472,2]
[343130522,1732375859432,-3445.7,0.00025472,2]
[343130523,1732375859442,-559.71,0.00025472,2]
[343130524,1732375859451,-752.56,0.00025472,2]
[343130525,1732375859461,-19902.62,0.00025473,2]
[343130526,1732375859470,-654.72,0.00025473,2]
[343130527,1732375859479,-754.52,0.00025473,2]
[343130528,1732375859489,-547.22,0.00025473,2]
[343130529,1732375859499,-172.102589,0.00025473,7]
[343130530,1732375859508,-1012.56,0.00025473,2]
[343130531,1732375859517,-172.102589,0.00025473,7]
[343130532,1732375859527,-562.77,0.00025473,2]
[343130533,1732375859538,-915.85,0.00025474,2]
[343130534,1732375859554,-613.64,0.00025474,2]
[343130535,1732375859564,-638.09,0.00025474,2]
[343130536,1732375859574,-535.71,0.00025474,2]
[343130537,1732375859584,-1008.53,0.00025474,2]
[343130538,1732375859594,-198.35071078,0.00025474,2]
[343130539,1732375859604,-625.26,0.00025474,2]
[343130540,1732375859613,-651.01,0.00025474,2]
[343130541,1732375859623,-850.35,0.00025474,2]
[343130542,1732375859633,-594.66,0.00025474,2]
[343130543,1732375859642,-500.0,0.00025474,2]
[343130544,1732375859652,-527.23,0.00025474,2]
[343130545,1732375859662,-605.47,0.00025474,2]
[343130546,1732375859671,-2794.17,0.00025474,2]
[343130547,1732375859681,-1647.64,0.00025474,2]
[343130548,1732375859695,-1003.9,0.00025474,2]
[343130549,1732375859704,-1390.8,0.00025474,2]
[343130550,1732375859714,-623.49,0.00025474,2]
[343130551,1732375859726,-579.06,0.00025474,2]
[343130552,1732375859735,-572.37,0.00025474,2]
[343130553,1732375859745,-557.86,0.00025474,2]
[343130554,1732375859755,-2599.42,0.00025474,2]
[343130555,1732375859764,-500.0,0.00025474,2]
[343130556,1732375859774,-2619.65,0.00025474,2]
[343130557,1732375859783,-500.0,0.00025474,2]
[343130558,1732375859792,-1046.17,0.00025475,10]
[343130559,1732375859802,-1022.43,0.00025475,2]
[343130560,1732375859812,-500.0,0.00025475,2]
[343130561,1732375859822,-500.0,0.00025475,2]
[343130562,1732375859831,-684.46,0.00025475,2]
[343130563,1732375859841,-620.66,0.00025475,2]
[343130564,1732375859851,-501.84,0.00025475,2]
[343130565,1732375859861,-751.78,0.00025475,2]
[343130566,1732375859871,-844.08,0.00025475,2]
[343130567,1732375859880,-1515.31,0.00025476,2]
[343130568,1732375859890,-1672.09,0.00025476,2]
[343130569,1732375859899,-1456.09,0.00025476,2]
[343130570,1732375859909,-833.39,0.00025476,2]
[343130571,1732375859920,-571.91,0.00025476,2]
[343130572,1732375859936,-503.77,0.00025476,2]
[343130573,1732375859951,-1199.57,0.00025476,2]
[343130574,1732375859967,-1722.52,0.00025476,2]
[343130575,1732375859977,-758.38,0.00025476,2]
[343130576,1732375859986,-832.79,0.00025476,2]
[343130577,1732375859996,-886.26,0.00025476,2]
[343130578,1732375860006,-500.0,0.00025476,2]
[343130579,1732375860016,-500.0,0.00025476,2]
[343130580,1732375860026,-505.49,0.00025476,2]
[343130581,1732375860036,-1514.66,0.00025476,2]
[343130582,1732375860047,-3232.96,0.00025476,2]
[343130583,1732375860057,-1015.33,0.00025476,2]
[343130584,1732375860067,-1821.31,0.00025476,2]
[343130585,1732375860077,-521.6,0.00025476,2]
[343130586,1732375860087,-659.92,0.00025478,2]
[343130587,1732375860096,-560.03,0.00025478,2]
[343130588,1732375860106,-500.0,0.00025478,2]
[343130589,1732375860115,-1253.7,0.00025478,2]
[343130590,1732375860125,-726.57,0.00025478,2]
[343130591,1732375860134,-303.33363667,0.00025533,2]
[343130592,1732375860144,-303.33363667,0.00025559,2]
[343130593,1732375860153,-250.0,0.00025621,2]
[343130594,1732375860162,-300.0,0.000257,2]
[343130595,1732375860172,-4657.37,0.00025746,2]
[343130596,1732375860182,-1153.0,0.00025746,2]
[343130597,1732375860193,-3445.7,0.00025746,2]
[343130598,1732375860202,-559.71,0.00025746,2]
[343130599,1732375860211,-752.56,0.00025746,2]
[343130600,1732375860221,-19902.62,0.00025747,2]
[343130601,1732375860231,-654.72,0.00025747,2]
[343130602,1732375860240,-754.52,0.00025747,2]
[343130603,1732375860251,-547.22,0.00025747,2]
[343130604,1732375860261,-1012.56,0.00025747,2]
[343130605,1732375860271,-562.77,0.00025747,2]
[343130606,1732375860280,-915.85,0.00025748,2]
[343130607,1732375860290,-613.64,0.00025748,2]
[343130608,1732375860301,-638.09,0.00025748,2]
[343130609,1732375860311,-535.71,0.00025748,2]
[343130610,1732375860321,-1008.53,0.00025748,2]
[343130611,1732375860331,-625.26,0.00025748,2]
[343130612,1732375860340,-651.01,0.00025748,2]
[343130613,1732375860350,-850.35,0.00025748,2]
[343130614,1732375860360,-594.66,0.00025748,2]
[343130615,1732375860370,-500.0,0.00025748,2]
[343130616,1732375860379,-527.23,0.00025748,2]
[343130617,1732375860389,-605.47,0.00025748,2]
[343130618,1732375860399,-2794.17,0.00025748,2]
[343130619,1732375860409,-1647.64,0.00025748,2]
[343130620,1732375860419,-1003.9,0.00025748,2]
[343130621,1732375860429,-1390.8,0.00025748,2]
[343130622,1732375860439,-623.49,0.00025748,2]
[343130623,1732375860449,-579.06,0.00025748,2]
[343130624,1732375860459,-572.37,0.00025748,2]
[343130625,1732375860468,-557.86,0.00025748,2]
[343130626,1732375860538,-2599.42,0.00025748,2]
[343130627,1732375860555,-533.78073925,0.00025748,2]
[343130628,1732375860565,-2619.65,0.00025748,2]
[343130629,1732375860575,-500.0,0.00025748,2]
[343130630,1732375860585,-1046.17,0.00025749,10]
[343130631,1732375860595,-1022.43,0.00025749,2]
[343130632,1732375860605,-500.0,0.00025749,2]
[343130633,1732375860614,-500.0,0.00025749,2]
[343130634,1732375860623,-684.46,0.00025749,2]
[343130635,1732375860634,-620.66,0.00025749,2]
[343130636,1732375860644,-501.84,0.00025749,2]
[343130637,1732375860654,-751.78,0.00025749,2]
[343130638,1732375860664,-844.08,0.00025749,2]
[343130639,1732375860673,-151.0,0.0002575,7]
[343130640,1732375860683,-1515.31,0.0002575,2]
[343130641,1732375860695,-1672.09,0.0002575,2]
[343130642,1732375860705,-1456.09,0.0002575,2]
[343130643,1732375860715,-833.39,0.0002575,2]
[343130644,1732375860725,-571.91,0.0002575,2]
[343130645,1732375860735,-503.77,0.0002575,2]
[343130646,1732375860744,-1199.57,0.0002575,2]
[343130647,1732375860754,-1722.52,0.0002575,2]
[343130648,1732375860765,-758.38,0.0002575,2]
[343130649,1732375860775,-832.79,0.0002575,2]
[343130650,1732375860784,-886.26,0.0002575,2]
[343130651,1732375860795,-548.15410875,0.0002575,2]
[343130652,1732375860805,-500.0,0.0002575,2]
[343130653,1732375860816,-505.49,0.0002575,2]
[343130654,1732375860825,-1514.66,0.0002575,2]
[343130655,1732375860835,-3232.96,0.0002575,2]
[343130656,1732375860845,-1015.33,0.0002575,2]
[343130657,1732375860854,-1821.31,0.0002575,2]
[343130658,1732375860864,-521.6,0.0002575,2]
[343130659,1732375860874,-659.92,0.00025752,2]
[343130660,1732375860884,-560.03,0.00025752,2]
[343130661,1732375860893,-500.0,0.00025752,2]
[343130662,1732375860903,-1253.7,0.00025752,2]
[343130663,1732375860912,-726.57,0.00025752,2]
[343130664,1732375860921,-434.0,0.00025775,2]
[343130665,1732375860931,-524.49167408,0.00025777,2]
[343130666,1732375860941,-303.33363667,0.00025788,2]
[343130667,1732375860950,-600.0,0.00025803,7]
[343130668,1732375860959,-303.33363667,0.00025814,2]
[343130669,1732375860968,-160.0,0.00025907,3]
[343130670,1732375860978,-152.05647256,0.00025947,2]
[343130671,1732375860987,-500.0,0.00026,20]
[343130672,1732375860996,-52547.06267405,0.00026,2]
[343130673,1732375861006,-529.20703379,0.00026,2]
[343130674,1732375861015,-5797.64909081,0.00026,7]
[343130675,1732375861025,-9609.39701723,0.00026,3]
[343130676,1732375861034,-4657.37,0.0002602,2]
[343130677,1732375861046,-1153.0,0.0002602,2]
[343130678,1732375861055,-3445.7,0.0002602,2]
[343130679,1732375861065,-559.71,0.0002602,2]
[343130680,1732375861073,-752.56,0.0002602,2]
[343130681,1732375861083,-19902.62,0.00026021,2]
[343130682,1732375861093,-654.72,0.00026021,2]
[343130683,1732375861102,-754.52,0.00026021,2]
[343130684,1732375861112,-547.22,0.00026021,2]
[343130685,1732375861122,-1012.56,0.00026021,2]
[343130686,1732375861132,-562.77,0.00026021,2]
[343130687,1732375861142,-915.85,0.00026022,2]
[343130688,1732375861152,-613.64,0.00026022,2]
[343130689,1732375861162,-638.09,0.00026022,2]
[343130690,1732375861172,-535.71,0.00026022,2]
[343130691,1732375861182,-1008.53,0.00026022,2]
[343130692,1732375861192,-625.26,0.00026022,2]
[343130693,1732375861202,-651.01,0.00026022,2]
[343130694,1732375861217,-850.35,0.00026022,2]
[343130695,1732375861231,-594.66,0.00026022,2]
[343130696,1732375861243,-500.0,0.00026022,2]
[343130697,1732375861253,-527.23,0.00026022,2]
[343130698,1732375861264,-605.47,0.00026022,2]
[343130699,1732375861274,-2794.17,0.00026022,2]
[343130700,1732375861284,-1647.64,0.00026022,2]
[343130701,1732375861296,-1003.9,0.00026022,2]
[343130702,1732375861308,-1390.8,0.00026022,2]
[343130703,1732375861318,-623.49,0.00026022,2]
[343130704,1732375861329,-579.06,0.00026022,2]
[343130705,1732375861339,-572.37,0.00026022,2]
[343130706,1732375861349,-557.86,0.00026022,2]
[343130707,1732375861359,-2599.42,0.00026022,2]
[343130708,1732375861370,-2619.65,0.00026022,2]
[343130709,1732375861380,-280.52676085,0.00026022,2]
[343130710,1732375861390,-1046.17,0.00026023,10]
[343130711,1732375861400,-1022.43,0.00026023,2]
[343130712,1732375861410,-231.55298428,0.00026023,2]
[343130713,1732375861420,-500.0,0.00026023,2]
[343130714,1732375861430,-684.46,0.00026023,2]
[343130715,1732375861441,-620.66,0.00026023,2]
[343130716,1732375861451,-501.84,0.00026023,2]
[343130717,1732375861462,-751.78,0.00026023,2]
[343130718,1732375861473,-844.08,0.00026023,2]
[343130719,1732375861483,-1515.31,0.00026024,2]
[343130720,1732375861492,-1672.09,0.00026024,2]
[343130721,1732375861502,-1456.09,0.00026024,2]
[343130722,1732375861511,-833.39,0.00026024,2]
[343130723,1732375861520,-571.91,0.00026024,2]
[343130724,1732375861529,-503.77,0.00026024,2]
[343130725,1732375861539,-1199.57,0.00026024,2]
[343130726,1732375861551,-1722.52,0.00026024,2]
[343130727,1732375861561,-758.38,0.00026024,2]
[343130728,1732375861571,-832.79,0.00026024,2]
[343130729,1732375861580,-886.26,0.00026024,2]
[343130730,1732375861590,-621.77201889,0.00026024,2]
[343130731,1732375861599,-505.49,0.00026024,2]
[343130732,1732375861608,-1514.66,0.00026024,2]
[343130733,1732375861617,-3232.96,0.00026024,2]
[343130734,1732375861627,-1015.33,0.00026024,2]
[343130735,1732375861637,-1821.31,0.00026024,2]
[343130736,1732375861648,-521.6,0.00026024,2]
[343130737,1732375861657,-659.92,0.00026026,2]
[343130738,1732375861667,-560.03,0.00026026,2]
[343130739,1732375861677,-275.73030489,0.00026026,2]
[343130740,1732375861690,-1253.7,0.00026026,2]
[343130741,1732375861700,-726.57,0.00026026,2]
[343130742,1732375861710,-303.33363667,0.00026043,2]
[343130743,1732375861720,-303.33363667,0.0002607,2]
[343130744,1732375861730,-5647.02334655,0.0002611,2]
[343130745,1732375861740,-350.0,0.00026168,2]
[343130746,1732375861749,-310.19758166,0.0002623,2]
[343130747,1732375861759,-4657.3943367,0.00026293,2]
[343130748,1732375861825,-1153.11917249,0.00026293,2]
[343130749,1732375861841,-3445.91978991,0.00026293,2]
[343130750,1732375861851,-172.102589,0.00026293,7]
[343130751,1732375861861,-172.102589,0.00026293,7]
[343130752,1732375861870,-559.77,0.00026293,2]
[343130753,1732375861881,-752.65007207,0.00026293,2]
[343130754,1732375861891,-19902.82862468,0.00026295,2]
[343130755,1732375861901,-654.83650025,0.00026295,2]
[343130756,1732375861910,-754.64392953,0.00026295,2]
[343130757,1732375861920,-547.34811643,0.00026295,2]
[343130758,1732375861929,-1012.66676666,0.00026295,2]
[343130759,1732375861938,-562.80565445,0.00026295,2]
[343130760,1732375861947,-1046.3005456,0.00026296,10]
[343130761,1732375861957,-915.89148764,0.00026296,2]
[343130762,1732375861968,-1022.64441422,0.00026296,2]
[343130763,1732375861978,-613.68058035,0.00026296,2]
[343130764,1732375861988,-638.15101078,0.00026296,2]
[343130765,1732375861997,-485.34379074,0.00026296,2]
[343130766,1732375862007,-535.79324322,0.00026296,2]
[343130767,1732375862016,-1008.75643167,0.00026296,2]
[343130768,1732375862026,-684.53484022,0.00026296,2]
[343130769,1732375862036,-625.47742228,0.00026296,2]
[343130770,1732375862047,-651.13725394,0.00026296,2]
[343130771,1732375862057,-620.68413649,0.00026296,2]
[343130772,1732375862067,-850.45223126,0.00026296,2]
[343130773,1732375862076,-502.02566235,0.00026296,2]
[343130774,1732375862085,-594.70146799,0.00026296,2]
[343130775,1732375862095,-420.23612655,0.00026296,2]
[343130776,1732375862104,-527.36473916,0.00026296,2]
[343130777,1732375862114,-605.62009031,0.00026296,2]
[343130778,1732375862123,-2794.22995987,0.00026296,2]
[343130779,1732375862133,-1647.74791851,0.00026296,2]
[343130780,1732375862143,-1004.09324599,0.00026296,2]
[343130781,1732375862153,-1390.94939421,0.00026296,2]
[343130782,1732375862164,-623.5685091,0.00026296,2]
[343130783,1732375862174,-579.09058945,0.00026296,2]
[343130784,1732375862184,-572.55278187,0.00026296,2]
[343130785,1732375862193,-751.97834392,0.00026296,2]
[343130786,1732375862203,-844.22734359,0.00026296,2]
[343130787,1732375862213,-557.99504929,0.00026296,2]
[343130788,1732375862223,-2599.65,0.00026296,2]
[343130789,1732375862233,-2619.72,0.00026296,2]
[343130790,1732375862243,-1515.54399822,0.00026298,2]
[343130791,1732375862253,-1672.1120675,0.00026298,2]
[343130792,1732375862264,-1456.17950269,0.00026298,2]
[343130793,1732375862274,-833.60095736,0.00026298,2]
[343130794,1732375862285,-571.96093706,0.00026298,2]
[343130795,1732375862297,-503.90288335,0.00026298,2]
[343130796,1732375862307,-1199.5845784,0.00026298,2]
[343130797,1732375862317,-1722.54175308,0.00026298,2]
[343130798,1732375862327,-758.53950079,0.00026298,2]
[343130799,1732375862338,-832.87047597,0.00026298,2]
[343130800,1732375862349,-886.44256652,0.00026298,2]
[343130801,1732375862359,-505.51116372,0.00026298,2]
[343130802,1732375862368,-1514.74538323,0.00026298,2]
[343130803,1732375862379,-3233.14860161,0.00026298,2]
[343130804,1732375862390,-1015.50214618,0.00026298,2]
[343130805,1732375862400,-1821.48760274,0.00026298,2]
[343130806,1732375862410,-521.7,0.00026298,2]
[343130807,1732375862420,-455.000455,0.00026299,4]
[343130808,1732375862429,-659.9547553,0.000263,2]
[343130809,1732375862439,-560.1292272,0.000263,2]
[343130810,1732375862449,-1253.91291679,0.000263,2]
[343130811,1732375862459,-726.70875133,0.000263,2]
[343130812,1732375862468,-455.000455,0.00026325,4]
[343130813,1732375862477,-304.342862,0.00026369,2]
[343130814,1732375862488,-304.609096,0.00026369,2]
[343130815,1732375862498,-660.0,0.00026384,2]
[343130816,1732375862507,-408.630783,0.00026411,2]
[343130817,1732375862517,-7458.94652043,0.0002649,2]
[343130818,1732375862527,-455.000455,0.00026554,4]
[343130819,1732375862537,-455.000455,0.00026581,4]
[343130820,1732375862550,-600.0,0.00026625,7]
[343130821,1732375862560,-300.0,0.000267,2]
[343130822,1732375862569,-201.73890906,0.00026716,2]
[343130823,1732375862579,-455.000455,0.00026809,4]
[343130824,1732375862588,-455.000455,0.00026837,4]
[343130825,1732375862598,-706.60387,0.00027,23]
[343130826,1732375862607,-455.000455,0.00027065,4]
[343130827,1732375862617,-455.000455,0.00027092,4]
[343130828,1732375862626,-3000.0,0.00027099,2]
[343130829,1732375862637,-455.000455,0.0002732,4]
[343130830,1732375862650,-455.000455,0.00027348,4]
[343130831,1732375862661,-434.0,0.00027386,2]
[343130832,1732375862671,-211.8060889,0.00027397,2]
[343130833,1732375862682,-500.0,0.00027397,2]
[343130834,1732375862695,-514.39988783,0.00027397,2]
[343130835,1732375862705,-570.91739902,0.00027397,2]
[343130836,1732375862715,-500.0,0.00027397,2]
[343130837,1732375862726,-500.0,0.00027397,2]
[343130838,1732375862736,-500.0,0.00027397,2]
[343130839,1732375862746,-510.71246641,0.00027397,2]
[343130840,1732375862756,-28243.28,0.000274,2]
[343130841,1732375862768,-600.0,0.00027447,7]
[343130842,1732375862778,-151.0,0.00027462,7]
[343130843,1732375862788,-44373.54905596,0.000275,2]
[343130844,1732375862802,-445.91,0.00027541,2]
[343130845,1732375862815,-310.00987908,0.00027542,2]
[343130846,1732375862826,-609.1334052,0.00027575,6]
[343130847,1732375862836,-605.3393255,0.00027603,6]
[343130848,1732375862845,-434.0,0.00027616,2]
[343130849,1732375862854,-300.0,0.000277,2]
[343130850,1732375862865,-151.0,0.00027812,7]
[343130851,1732375862874,-7809.58157825,0.00027851,14]
[343130852,1732375862884,-5000.0,0.00027851,12]
[343130853,1732375862893,-5000.0,0.00027851,16]
[343130854,1732375862903,-5000.0,0.00027851,16]
[343130855,1732375862912,-32002.23371113,0.0002799,2]
[343130856,1732375862922,-1168.39721526,0.0002799,7]
[343130857,1732375862932,-384136.33545847,0.00028,30]
[343130858,1732375862941,-172.102589,0.00028,7]
[343130859,1732375862950,-172.102589,0.00028,7]
[343130860,1732375862959,-102308.9697272,0.00028,2]
[343130861,1732375863030,-384.0899127,0.00028065,2]
[343130862,1732375863040,-500.0,0.00028092,10]
[343130863,1732375863052,-500.0,0.00028092,10]
[343130864,1732375863062,-500.0,0.00028092,10]
[343130865,1732375863072,-299.56,0.00028092,10]
[343130866,1732375863085,-500.0,0.00028093,10]
[343130867,1732375863095,-160.0,0.00028097,4]
[343130868,1732375863106,-263.60119022,0.00028097,5]
[343130869,1732375863116,-281.60976922,0.00028138,5]
[343130870,1732375863127,-151.0,0.00028138,7]
[343130871,1732375863137,-560.69418476,0.00028219,2]
[343130872,1732375863147,-275.016217,0.00028251,7]
[343130873,1732375863158,-307182.66674193,0.00028271,10]
[343130874,1732375863286,-524.49167408,0.00026575,2]
[343130875,1732375863299,-160.80507585,0.00028171,2]
[343130876,1732375863310,-926.09955007,0.00028271,10]
[343130877,1732375863322,-17341.22428396,0.00028271,10]
[343130878,1732375863334,-2291.55005,0.00028271,10]
[343130879,1732375863347,-497.3934386,0.00028271,10]
[343130880,1732375863359,-3074.72196477,0.00028271,10]
[343130881,1732375863376,-36017.08110734,0.00028271,10]
[343130882,1732375863389,-72515.44535099,0.00028271,10]
[343130883,1732375863411,-4486.09174871,0.00018735,2]
[343130884,1732375863423,-869.94591213,0.00018735,2]
[343130885,1732375863441,-540.9095178,0.00018735,2]
[343130886,1732375863450,-101.08181005,0.00027373,2]
[343133482,1732376650374,-1000.0,0.00028805,120]
[343133483,1732376650422,-1000.0,0.00028805,120]
[343133484,1732376650473,-1874.60568915,0.00028805,120]
[343133485,1732376650642,-117296.39034298,0.00028805,120]
[343133486,1732376650668,-150.0,0.00029226,120]
[343133487,1732376650693,-490.1434052,0.0002961,120]
[343133488,1732376650718,-200.0,0.0003,120]
[343133489,1732376650743,-333.39279,0.0003,120]
[343133490,1732376650769,-400.0,0.0003,120]
[343133491,1732376650793,-416.9264726,0.0003,60]
[343133492,1732376650818,-146943.25412279,0.0003,60]
[343133493,1732376650863,-411.22410666,0.00029,31]
[343133495,1732376758811,310.89955021,0.00028,120]
[343133496,1732376784838,179.24385499,0.0002961,120]
[343133497,1732376806691,5000.0,0.00028805,120]
[343133498,1732376862368,5000.0,0.00028805,120]
[343133501,1732376890290,1450.0,0.00028805,120]
[343133508,1732376914836,2722.0,0.00028805,120]
[343133509,1732376931644,-6056.790233,0.0001821,2]
[343133510,1732376931673,-6056.790233,0.00018895,2]
[343133511,1732376931699,-167.610729,0.00019178,2]
[343133512,1732376931727,-216.11193723,0.00019185,2]
[343133513,1732376931754,-917.89736883,0.00019186,2]
[343133514,1732376931781,-210.33266948,0.00019203,2]
[343133515,1732376931808,-300.0,0.00019212,2]
[343133516,1732376931835,-300.0,0.00019212,2]
[343133517,1732376931864,-6312.9,0.00019213,2]
[343133518,1732376931895,-24900.0,0.00019213,2]
[343133519,1732376931924,-1310.23365892,0.00019487,2]
[343133520,1732376931937,-5002.66634108,0.00019487,2]
[343133521,1732376946136,-200.42887195,0.00018795,3]
[343133522,1732376946158,-355.9063819,0.00019448,2]
[343133523,1732376946181,-729.15788257,0.0001958,2]
[343133524,1732376946213,-5327.63235043,0.0001958,2]
[343133525,1732376946237,-300.0,0.0001976,2]
[343133526,1732376946260,-300.0,0.0001976,2]
[343133527,1732376946285,-6312.9,0.00019761,2]
[343133528,1732376946317,-213.33205762,0.000198,2]
[343133529,1732376946339,-213.33205761,0.000198,2]
[343133530,1732376946362,-465.9504154,0.00019859,2]
[343133531,1732376946389,-208.06273119,0.00019991,2]
[343133532,1732376946411,-500.0,0.00019991,2]
[343133533,1732376946434,-500.0,0.00019991,2]
[343133534,1732376946458,-500.0,0.00019991,2]
[343133535,1732376946480,-760.56,0.00019991,2]
[343133536,1732376946502,-528.07,0.00019991,2]
[343133537,1732376946526,-6312.9,0.00020035,2]
[343133538,1732376946549,-500.0,0.00020265,2]
[343133539,1732376946571,-500.0,0.00020265,2]
[343133540,1732376946594,-282.09003042,0.00020265,2]
[343133541,1732376946616,-760.56,0.00020265,2]
[343133542,1732376946643,-6312.9,0.00020309,2]
[343133543,1732376946666,-917.89736881,0.00020454,2]
[343133544,1732376946689,-500.0,0.00020539,2]
[343133545,1732376946711,-500.0,0.00020539,2]
[343133546,1732376946734,-760.56,0.00020539,2]
[343133547,1732376946758,-6312.9,0.00020583,2]
[343133548,1732376946780,-152.0,0.00020628,2]
[343133549,1732376946804,-500.0,0.00020813,2]
[343133550,1732376946827,-500.0,0.00020813,2]
[343133551,1732376946849,-760.56,0.00020813,2]
[343133552,1732376946873,-6312.9,0.00020856,2]
[343133553,1732376946898,-500.0,0.00021087,2]
[343133554,1732376946920,-500.0,0.00021087,2]
[343133555,1732376946941,-760.56,0.00021087,2]
[343133556,1732376946963,-678.19,0.0002112,3]
[343133557,1732376946986,-6312.9,0.0002113,2]
[343133558,1732376947011,-553.735155,0.00021361,2]
[343133559,1732376947033,-500.0,0.00021361,2]
[343133560,1732376947055,-760.56,0.00021361,2]
[343133561,1732376947077,-6312.9,0.00021404,2]
[343133562,1732376947099,-420.0,0.00021522,2]
[343133563,1732376947120,-588.34,0.00021635,2]
[343133564,1732376947144,-760.56,0.00021635,2]
[343133565,1732376947168,-6312.9,0.00021678,2]
[343133566,1732376947192,-917.89736881,0.00021722,2]
[343133567,1732376947213,-420.0,0.00021736,2]
[343133568,1732376947240,-760.56,0.00021909,2]
[343133569,1732376947263,-6137.61582244,0.00021952,2]
[343133572,1732376992099,4820.79,0.00028805,120]
[343133673,1732377032278,-175.28417756,0.00021952,2]
[343133675,1732377032288,-760.56,0.00022183,2]
[343133678,1732377032298,-201.00712121,0.00022226,2]
[343133680,1732377032310,-2290.89995,0.00022226,2]
[343133682,1732377032323,-1555.81912926,0.00022226,2]
[343133707,1732377032569,-2265.17379953,0.00022226,2]
[343133709,1732377032580,-1320.58,0.000223,2]
[343133711,1732377032590,-760.56,0.00022457,2]
[343133712,1732377032600,-250.0,0.00022499,2]
[343133714,1732377032610,-300.0,0.00022499,2]
[343133716,1732377032620,-6312.9,0.000225,2]
[343133718,1732377032630,-760.56,0.00022731,2]
[343133720,1732377032640,-6312.9,0.00022774,2]
[343133722,1732377032650,-917.89736881,0.0002299,2]
[343133724,1732377032660,-1271.93111066,0.00023,2]
[343133726,1732377032669,-760.56,0.00023005,2]
[343133728,1732377032679,-6312.9,0.00023048,2]
[343133730,1732377032688,-187.176,0.00023093,2]
[343133732,1732377032698,-760.56,0.00023279,2]
[343133734,1732377032708,-208.0627312,0.00023321,2]
[343133736,1732377032720,-500.0,0.00023321,2]